[Event "Catalan Youth Championship 2024"]
[Site "Cambrils"]
[Date "2024.03.27"]
[Round "8.18"]
[White "Funes Ostos, Aitor"]
[Black "Serrahima Susany, Ramon"]
[Result "1-0"]
[ECO "D32"]
[WhiteElo "2125"]
[BlackElo "2029"]
[Annotator "NA RC"]
[PlyCount "77"]
[EventDate "2024.03.13"]
[EventType "swiss"]
[EventCountry "ESP"]
[SourceTitle "playchess.com"]
[Source "ChessBase"]
[SourceQuality "1"]
[TimeControl "5400+30"]

1. c4 {[%emt 1:31:00]} e6 {[%emt 1:31:00]} 2. Nc3 {[%emt 0:00:30]} d5 {[%emt 0:00:30]} 3. e3 {[%emt 0:00:30]} c5 {[%emt 0:00:30]} 4. cxd5 {[%emt 0:00:30]} exd5 {[%emt 0:00:30]} 5. Nf3 {[%emt 0:00:30]} Nf6 {[%emt 0:00:30]} 6. d4 {[%emt 0:00:30]} Nc6 {[%emt 0:00:30]} 7. Bb5 {[%emt 0:00:30]} cxd4 {[%emt 0:00:30]} 8. Nxd4 {[%emt 0:00:30]} Bd7 {[%emt 0:00:30]} 9. O-O {[%emt 0:00:30]} Bd6 {[%emt 0:00:30]} 10. Nf3 {[%emt 0:00:30]} Bg4 {[%emt 0:00:30]} 11. b3 {[%emt 0:00:30]} O-O {[%emt 0:00:30]} 12. Bb2 {[%emt 0:00:30]} Rc8 {[%emt 0:00:30]} 13. Ne2 {[%emt 0:00:30]} Bxf3 {[%emt 0:00:30]} 14. gxf3 {[%emt 0:00:30]} Be5 {[%emt 0:00:30]} 15. Bxe5 {[%emt 0:00:30]} Nxe5 {[%emt 0:00:30]} 16. Nd4 {[%emt 0:00:30]} a6 {[%emt 0:00:30]} 17. Be2 $11 {[%emt 0:00:30]} Qd7 {[%emt 0:00:30]} 18. Kh1 {[%emt 0:00:30]} Nc6 {[%emt 0:00:30]} 19. Rg1 {[%emt 0:00:30]} Nxd4 {[%emt 0:00:30]} 20. Qxd4 {[%emt 0:00:30]} Qe6 {[%emt 0:00:30]} 21. Bd3 {[%emt 0:00:30]} Rc6 {[%emt 0:00:30]} 22. Rg5 {[%emt 0:00:30]} Qh3 {[%emt 0:00:30]} 23. Rg3 {[%emt 0:00:30]} Qe6 {[%emt 0:00:30]} 24. Bxh7+ {[%emt 0:00:30]} Kxh7 {[%emt 0:00:30]} 25. Qh4+ {[%emt 0:00:30]} Kg8 {[%emt 0:00:30]} 26. Rxg7+ {[%emt 0:00:30]} Kxg7 {[%emt 0:00:30]} 27. Rg1+ {[%emt 0:00:30]} Ng4 {[%emt 0:00:30]} 28. Rxg4+ {[%emt 0:00:30]} Qxg4 {[%emt 0:00:30]} 29. fxg4 {[%emt 0:00:30]} Rg6 {[%emt 0:00:30]} 30. Qg3 {[%emt 0:00:30]} Re8 {[%emt 0:00:30]} 31. h4 {[%emt 0:00:30]} Re4 {[%emt 0:00:30]} 32. g5 {[%emt 0:00:30]} f6 {[%emt 0:00:30]} 33. Qc7+ {[%emt 0:00:30]} Kg8 {[%emt 0:00:30]} 34. f4 {[%emt 0:00:30]} Rxe3 {[%emt 0:00:30]} 35. f5 {[%emt 0:00:30]} Rg7 {[%emt 0:00:30]} 36. Qd8+ {[%emt 0:00:30]} Kh7 {[%emt 0:00:30]} 37. g6+ {[%emt 0:00:30]} Rxg6 {[%emt 0:00:30]} 38. fxg6+ {[%emt 0:00:30]} Kxg6 {[%emt 0:00:30]} 39. Qg8+ {[%emt 0:00:30]} 1-0

[Event "Catalan Youth Championship 2024"]
[Site "Cambrils"]
[Date "2024.03.27"]
[Round "8.19"]
[White "Chiva Perez, Ferran"]
[Black "Ano Pla, Gerard"]
[Result "0-1"]
[ECO "E04"]
[WhiteElo "2025"]
[BlackElo "2230"]
[Annotator "RC"]
[PlyCount "80"]
[EventDate "2024.03.13"]
[EventType "swiss"]
[EventCountry "ESP"]
[SourceTitle "playchess.com"]
[Source "ChessBase"]
[SourceQuality "1"]
[TimeControl "5400+30"]

1. d4 {[%emt 0:00:01]} d5 {[%emt 0:00:04]} 2. c4 {[%emt 0:00:05]} e6 {[%emt 0:00:03]} 3. Nf3 {[%emt 0:00:14]} Nf6 {[%emt 0:00:15]} 4. g3 {[%emt 0:00:16]} Bb4+ {[%emt 0:00:05]} 5. Nbd2 {[%emt 0:00:38]} dxc4 {[%emt 0:01:04]} 6. Bg2 {[%emt 0:00:35]} O-O {[%emt 0:00:14]} 7. Qc2 {[%emt 1:32:11]} b5 {[%emt 0:02:59]} 8. a4 {[%emt 0:00:30]} bxa4 {[%emt 1:29:46]} 9. O-O {[%emt 0:00:30]} Bb7 {[%emt 0:00:00]} 10. Nxc4 {[%emt 0:00:30]} Nbd7 {[%emt 0:01:00]} 11. Rd1 {[%emt 0:00:30]} Nb6 {[%emt 0:00:30]} 12. Nfe5 {[%emt 0:00:00]} Bxg2 {[%emt 0:00:00]} 13. Kxg2 {[%emt 0:01:00]} Qd5+ {[%emt 0:01:00]} 14. f3 {[%emt 0:00:30]} h6 {[%emt 0:00:30]} 15. Bd2 {[%emt 0:00:00]} Bxd2 {[%emt 0:00:00]} 16. Rxd2 {[%emt 0:01:00]} Qb5 {[%emt 0:00:00]} 17. Na3 {[%emt 0:00:00]} Qa6 {[%emt 0:00:00]} 18. Nc6 {[%emt 0:00:00]} Nfd5 {[%emt 0:00:00]} 19. Qc5 {[%emt 0:00:00]} Ne3+ {[%emt 0:00:00]} 20. Kf2 {[%emt 0:02:00]} Nec4 {[%emt 0:00:00]} 21. Rc2 {[%emt 0:00:00]} Nxa3 {[%emt 0:00:00]} 22. Rxa3 {[%emt 0:01:00]} Nd5 {[%emt 0:04:00]} 23. Rc4 {[%emt 0:00:00]} Qb6 {[%emt 0:00:00]} 24. Rcxa4 {[%emt 0:00:00]} Qxb2 {[%emt 0:00:00]} 25. Rxa7 {[%emt 0:00:00]} Rxa7 {[%emt 0:00:00]} 26. Rxa7 {[%emt 0:00:00]} g6 {[%emt 0:02:00]} 27. Qa3 {[%emt 0:00:36]} Qb1 {[%emt 0:00:00]} 28. e4 {[%emt 0:01:43]} Qc2+ {[%emt 0:00:00]} 29. Kg1 {[%emt 0:00:21]} Qxc6 {[%emt 0:00:00]} 30. exd5 {[%emt 0:00:18]} Qxd5 {[%emt 0:00:00]} 31. Qb2 {[%emt 0:01:00]} Qxf3 {[%emt 0:00:00]} 32. Rxc7 {[%emt 0:00:16]} Rd8 {[%emt 0:00:00]} 33. Rc4 {[%emt 0:01:16]} Qd5 {[%emt 0:00:00]} 34. Qc3 {[%emt 0:00:00]} Kg7 {[%emt 0:00:00]} 35. Ra4 {[%emt 0:00:28]} h5 {[%emt 0:00:00]} 36. Rb4 {[%emt 0:00:30]} Rd6 {[%emt 0:00:00]} 37. h4 {[%emt 0:00:22]} Kh7 {[%emt 0:00:00]} 38. Qc7 {[%emt 0:00:28]} Rd7 {[%emt 0:06:00]} 39. Qe5 {[%emt 0:00:23]} Qd6 {[%emt 0:00:00]} 40. Rb5 {[%emt 0:00:46]} Qxd4+ {[%emt 0:00:00]} 0-1

[Event "Catalan Youth Championship 2024"]
[Site "Cambrils"]
[Date "2024.03.27"]
[Round "8.20"]
[White "Vinuesa Sorli, Ruben"]
[Black "Garcia Caro, Juan Alber"]
[Result "1-0"]
[ECO "B90"]
[WhiteElo "1996"]
[BlackElo "2128"]
[Annotator "RC"]
[PlyCount "167"]
[EventDate "2024.03.13"]
[EventType "swiss"]
[EventCountry "ESP"]
[SourceTitle "playchess.com"]
[Source "ChessBase"]
[SourceQuality "1"]
[TimeControl "5400+30"]

1. e4 {[%emt 0:00:05]} c5 {[%emt 0:04:51]} 2. Nf3 {[%emt 0:00:14]} d6 {[%emt 0:00:19]} 3. d4 {[%emt 0:00:17]} cxd4 {[%emt 0:00:04]} 4. Nxd4 {[%emt 0:00:10]} Nf6 {[%emt 0:00:06]} 5. Nc3 {[%emt 0:00:26]} a6 {[%emt 0:00:08]} 6. f3 {[%emt 0:00:15]} e5 {[%emt 0:00:11]} 7. Nb3 {[%emt 0:00:28]} Be6 {[%emt 0:00:11]} 8. Be3 {[%emt 0:00:42]} Nbd7 {[%emt 0:00:12]} 9. Qd2 {[%emt 0:01:30]} b5 {[%emt 0:00:23]} 10. g4 {[%emt 0:00:55]} b4 {[%emt 0:01:05]} 11. Nd5 {[%emt 0:03:02]} Bxd5 {[%emt 0:00:10]} 12. exd5 {[%emt 0:00:08]} Nb6 {[%emt 0:00:04]} 13. O-O-O {[%emt 0:04:40]} Nfxd5 {[%emt 0:28:43]} 14. Bxb6 {[%emt 0:18:03]} Nxb6 {[%emt 0:00:12]} 15. Qxb4 {[%emt 0:00:39]} Be7 {[%emt 0:01:57]} 16. Qe4 {[%emt 0:08:17]} O-O {[%emt 0:02:32]} 17. Bd3 {[%emt 0:05:12]} g6 {[%emt 0:00:14]} 18. h4 {[%emt 0:06:04]} Bxh4 {[%emt 0:02:01]} 19. Kb1 {[%emt 0:11:11]} Bg5 {[%emt 0:04:46]} 20. Bc4 {[%emt 0:07:40]} Qc7 {[%emt 0:19:16]} 21. Bd5 {[%emt 0:02:21]} Nxd5 {[%emt 0:01:13]} 22. Rxd5 {[%emt 0:00:28]} a5 {[%emt 0:00:52]} 23. Nd2 {[%emt 0:04:20]} Rab8 {[%emt 0:20:08]} 24. Qd3 {[%emt 0:01:54]} Qb6 {[%emt 0:08:35]} 25. b3 {[%emt 0:01:12]} Qe3 {[%emt 0:00:55]} 26. Qxe3 {[%emt 0:00:23]} Bxe3 {[%emt 0:00:02]} 27. Nc4 {[%emt 0:00:41]} Bf4 {[%emt 0:01:30]} 28. Rxa5 {[%emt 0:01:51]} e4 {[%emt 0:00:32]} 29. fxe4 {[%emt 0:05:44]} Rfe8 {[%emt 0:00:15]} 30. Re1 {[%emt 0:01:02]} Rec8 {[%emt 0:00:36]} 31. Ra4 {[%emt 0:00:09]} Rb5 {[%emt 0:00:15]} 32. Nb2 {[%emt 0:01:29]} Rg5 {[%emt 0:00:49]} 33. Nd3 {[%emt 0:08:25]} Bd2 {[%emt 0:00:12]} 34. Rd1 {[%emt 0:01:04]} Bc3 {[%emt 0:01:14]} 35. Nf2 {[%emt 0:00:17]} Be5 {[%emt 0:00:56]} 36. b4 {[%emt 0:03:12]} Bg3 {[%emt 0:00:31]} 37. Rf1 {[%emt 0:00:03]} Rc7 {[%emt 0:00:50]} 38. Ra8+ {[%emt 0:04:57]} Kg7 39. a4 {[%emt 0:00:00]} Re5 {[%emt 0:01:30]} 40. Kb2 {[%emt 0:00:00]} d5 {[%emt 0:02:10]} 41. Nd3 {[%emt 0:00:35]} Rxe4 {[%emt 0:00:00]} 42. c3 {[%emt 0:00:33]} d4 {[%emt 0:00:00]} 43. Rc1 {[%emt 0:01:22]} Re3 {[%emt 0:00:29]} 44. Nc5 {[%emt 0:00:00]} dxc3+ {[%emt 0:00:05]} 45. Kb3 {[%emt 0:00:00]} Bd6 {[%emt 0:00:25]} 46. Ra5 {[%emt 0:01:30]} Be5 {[%emt 0:01:00]} 47. Rb5 {[%emt 0:00:00]} c2+ {[%emt 0:00:50]} 48. Kxc2 {[%emt 0:00:00]} Ra3 {[%emt 0:00:31]} 49. a5 {[%emt 0:00:23]} h5 {[%emt 0:00:30]} 50. gxh5 {[%emt 0:00:30]} gxh5 {[%emt 0:00:01]} 51. Re1 {[%emt 0:00:27]} Bg3 {[%emt 0:00:14]} 52. Rg1 {[%emt 0:00:58]} h4 {[%emt 0:00:01]} 53. Kb2 {[%emt 0:00:37]} Re3 {[%emt 0:00:28]} 54. a6 {[%emt 0:00:20]} Re8 {[%emt 0:01:15]} 55. Ra5 {[%emt 0:00:38]} Ra8 {[%emt 0:00:42]} 56. Ne4 {[%emt 0:00:16]} Rc4 {[%emt 0:00:55]} 57. Nxg3 {[%emt 0:00:11]} Rxb4+ {[%emt 0:01:04]} 58. Kc3 {[%emt 0:00:12]} Rb6 {[%emt 0:00:00]} 59. Ne4+ {[%emt 0:01:07]} Kh6 {[%emt 0:00:00]} 60. Nc5 {[%emt 0:00:29]} f5 {[%emt 0:00:00]} 61. Ra4 {[%emt 0:00:37]} Kh5 {[%emt 0:00:03]} 62. Rf4 {[%emt 0:00:33]} Rf6 {[%emt 0:00:26]} 63. Rh1 {[%emt 0:00:22]} Kg5 {[%emt 0:00:43]} 64. Rfxh4 {[%emt 0:00:18]} Rfxa6 {[%emt 0:00:41]} 65. Nxa6 {[%emt 0:00:40]} Rxa6 {[%emt 0:02:07]} 66. Rb4 {[%emt 0:01:22]} f4 {[%emt 0:00:30]} 67. Rg1+ {[%emt 0:00:00]} Kf5 {[%emt 0:00:00]} 68. Rf1 {[%emt 0:00:00]} Ra3+ {[%emt 0:00:00]} 69. Kb2 {[%emt 0:00:00]} Rg3 {[%emt 0:00:00]} 70. Rfxf4+ {[%emt 0:00:00]} Ke5 {[%emt 0:00:00]} 71. Rh4 {[%emt 0:00:00]} Rg2+ {[%emt 0:00:00]} 72. Ka3 {[%emt 0:00:00]} Rg3+ {[%emt 0:00:22]} 73. Rb3 {[%emt 0:00:01]} Rg1 {[%emt 0:00:06]} 74. Rb5+ {[%emt 0:00:05]} Kd6 {[%emt 0:00:14]} 75. Rh6+ {[%emt 0:00:10]} Kc7 {[%emt 0:00:03]} 76. Rf5 {[%emt 0:00:27]} Rg7 {[%emt 0:00:32]} 77. Kb4 {[%emt 0:00:28]} Kb7 {[%emt 0:00:12]} 78. Rfh5 {[%emt 0:00:19]} Rg4+ {[%emt 0:00:57]} 79. Kc5 {[%emt 0:00:38]} Rg1 {[%emt 0:01:03]} 80. Rh7+ {[%emt 0:01:34]} Kc8 {[%emt 0:00:01]} 81. Rf5 {[%emt 0:00:42]} Rg8 {[%emt 0:00:52]} 82. Rf6 {[%emt 0:00:35]} Kb8 {[%emt 0:01:06]} 83. Kc6 {[%emt 0:00:25]} Ka8 {[%emt 0:00:16]} 84. Rhf7 {[%emt 0:00:45]} 1-0

[Event "Catalan Youth Championship 2024"]
[Site "Cambrils"]
[Date "2024.03.27"]
[Round "8.21"]
[White "Olcina Monells, Jordi"]
[Black "Serrano Batova, Vicent"]
[Result "1/2-1/2"]
[ECO "A40"]
[WhiteElo "1929"]
[BlackElo "2104"]
[Annotator "NA RC"]
[PlyCount "62"]
[EventDate "2024.03.13"]
[EventType "swiss"]
[EventCountry "ESP"]
[SourceTitle "playchess.com"]
[Source "ChessBase"]
[SourceQuality "1"]
[TimeControl "5400+30"]

1. e4 {[%emt 0:00:02]} c5 {[%emt 0:00:01]} 2. Nf3 {[%emt 0:00:09]} g6 {[%emt 0:00:01]} 3. d4 {[%emt 0:00:11]} cxd4 {[%emt 0:00:05]} 4. Nxd4 {[%emt 0:00:08]} Bg7 {[%emt 0:00:05]} 5. c4 {[%emt 0:00:25]} Qb6 {[%emt 0:00:02]} 6. Nb5 {[%emt 0:11:40]} a6 {[%emt 0:00:01]} 7. Be3 {[%emt 0:01:08]} Qa5+ {[%emt 0:00:02]} 8. N5c3 {[%emt 0:00:09]} d6 {[%emt 0:00:17]} 9. Qd2 {[%emt 0:06:59]} Be6 {[%emt 0:00:01]} 10. Nd5 {[%emt 0:08:01]} Qxd2+ {[%emt 0:02:19]} 11. Nxd2 {[%emt 0:00:20]} Bxd5 {[%emt 0:00:35]} 12. cxd5 {[%emt 0:00:47]} Nd7 $14 {[%emt 0:03:40]} 13. O-O-O {[%emt 0:10:16]} Nc5 {[%emt 0:05:17]} 14. Bxc5 {[%emt 0:10:33]} Rc8 {[%emt 0:03:19]} 15. Kb1 {[%emt 0:01:11]} Rxc5 {[%emt 0:00:15]} 16. Nb3 {[%emt 0:01:06]} Rc7 {[%emt 0:00:36]} 17. Bd3 {[%emt 0:01:42]} h5 {[%emt 0:07:16]} 18. Rc1 {[%emt 0:12:40]} Kd8 {[%emt 0:00:31]} 19. Rxc7 {[%emt 0:00:10]} Kxc7 {[%emt 0:00:02]} 20. Rc1+ {[%emt 0:00:14]} Kb8 {[%emt 0:00:20]} 21. h4 {[%emt 0:00:09]} Nf6 {[%emt 0:01:25]} 22. f4 {[%emt 0:00:20]} Nd7 {[%emt 0:03:06]} 23. g3 {[%emt 0:01:30]} Rg8 {[%emt 0:09:42]} 24. Rf1 {[%emt 0:02:50]} Kc7 {[%emt 0:00:43]} 25. Rc1+ {[%emt 0:00:40]} Kb8 {[%emt 0:00:01]} 26. Rf1 {[%emt 0:00:24]} Bf6 {[%emt 0:00:07]} 27. Rd1 {[%emt 0:01:11]} Kc7 {[%emt 0:00:49]} 28. Rc1+ {[%emt 0:01:24]} Kb8 {[%emt 0:00:06]} 29. Rd1 {[%emt 0:00:07]} Rc8 {[%emt 0:00:25]} 30. Bf1 {[%emt 0:02:47]} Nb6 {[%emt 0:05:13]} 31. Re1 {[%emt 0:02:24]} Rc7 {[%emt 0:02:23]} 1/2-1/2

[Event "Catalan Youth Championship 2024"]
[Site "Cambrils"]
[Date "2024.03.27"]
[Round "8.22"]
[White "Navajas Alvarez, Josep"]
[Black "Martin Barcelo, Carles"]
[Result "0-1"]
[ECO "E62"]
[WhiteElo "1989"]
[BlackElo "2234"]
[Annotator "RC"]
[PlyCount "74"]
[EventDate "2024.03.13"]
[EventType "swiss"]
[EventCountry "ESP"]
[SourceTitle "playchess.com"]
[Source "ChessBase"]
[SourceQuality "1"]
[TimeControl "5400+30"]

1. d4 {[%emt 0:00:06]} Nf6 {[%emt 0:01:15]} 2. c4 {[%emt 0:00:22]} d6 {[%emt 0:00:45]} 3. Nf3 {[%emt 0:00:26]} g6 {[%emt 0:00:23]} 4. g3 {[%emt 0:00:24]} Bg7 {[%emt 0:00:17]} 5. Bg2 {[%emt 0:00:20]} O-O {[%emt 0:00:23]} 6. O-O {[%emt 0:00:23]} c6 {[%emt 0:00:29]} 7. Nc3 {[%emt 0:01:31]} Bf5 {[%emt 0:00:09]} 8. Re1 {[%emt 0:00:52]} Ne4 {[%emt 0:00:12]} 9. Qb3 {[%emt 0:00:42]} Nxc3 {[%emt 0:02:35]} 10. bxc3 {[%emt 0:00:41]} Bc8 {[%emt 0:01:16]} 11. e4 {[%emt 0:01:13]} Nd7 {[%emt 0:00:43]} 12. Ba3 {[%emt 0:04:20]} c5 {[%emt 0:03:19]} 13. Rad1 {[%emt 0:07:49]} Qc7 {[%emt 0:01:24]} 14. h3 {[%emt 0:08:24]} Rb8 {[%emt 0:13:05]} 15. Re2 {[%emt 0:05:57]} b5 {[%emt 0:08:48]} 16. cxb5 {[%emt 0:11:53]} a6 {[%emt 0:01:04]} 17. b6 {[%emt 0:03:00]} Nxb6 {[%emt 0:02:46]} 18. e5 {[%emt 0:14:00]} Bd7 {[%emt 0:20:41]} 19. Rde1 {[%emt 0:02:11]} Na4 {[%emt 0:13:49]} 20. Qc2 {[%emt 0:01:18]} Qa5 {[%emt 0:00:26]} 21. exd6 {[%emt 0:11:47]} exd6 {[%emt 0:00:50]} 22. Rc1 {[%emt 0:01:26]} Bf5 {[%emt 0:04:37]} 23. Qd2 {[%emt 0:00:53]} Nb6 {[%emt 0:00:18]} 24. g4 {[%emt 0:03:59]} Nc4 {[%emt 0:12:35]} 25. Qf4 {[%emt 0:02:07]} Bd3 {[%emt 0:02:49]} 26. Re7 {[%emt 0:03:01]} Qd8 {[%emt 0:02:58]} 27. Rce1 {[%emt 0:02:29]} Nxa3 {[%emt 0:00:10]} 28. dxc5 {[%emt 0:02:42]} dxc5 {[%emt 0:00:53]} 29. Ng5 {[%emt 0:01:17]} Rb1 {[%emt 0:01:04]} 30. Rxb1 {[%emt 0:04:49]} Qxe7 {[%emt 0:00:17]} 31. Rd1 {[%emt 0:00:47]} c4 {[%emt 0:01:55]} 32. Bd5 {[%emt 0:01:06]} Qf6 {[%emt 0:02:05]} 33. Qe3 {[%emt 0:01:50]} Nb5 {[%emt 0:00:26]} 34. Nxf7 {[%emt 0:02:13]} Rxf7 {[%emt 0:00:12]} 35. Qe8+ {[%emt 0:00:19]} Bf8 {[%emt 0:00:05]} 36. Re1 {[%emt 0:00:43]} Nxc3 {[%emt 0:01:40]} 37. Re6 {[%emt 0:00:42]} Qxf2+ {[%emt 0:00:29]} 0-1

[Event "Catalan Youth Championship 2024"]
[Site "Cambrils"]
[Date "2024.03.27"]
[Round "8.23"]
[White "Gomez Navais, Marcal"]
[Black "Tortajada Marti, Pol"]
[Result "1-0"]
[ECO "C45"]
[WhiteElo "2086"]
[BlackElo "1766"]
[Annotator "NA RC"]
[PlyCount "67"]
[EventDate "2024.03.13"]
[EventType "swiss"]
[EventCountry "ESP"]
[SourceTitle "playchess.com"]
[Source "ChessBase"]
[SourceQuality "1"]
[TimeControl "5400+30"]

1. e4 {[%emt 0:00:03]} e5 {[%emt 0:00:28]} 2. Nf3 {[%emt 1:31:27]} Nc6 {[%emt 0:00:12]} 3. d4 {[%emt 0:00:00]} exd4 {[%emt 0:00:07]} 4. Nxd4 {[%emt 0:00:00]} Nf6 {[%emt 0:00:08]} 5. Nxc6 {[%emt 0:00:00]} bxc6 {[%emt 0:00:07]} 6. e5 {[%emt 0:00:00]} Qe7 {[%emt 0:00:18]} 7. Qe2 {[%emt 0:00:00]} Nd5 {[%emt 0:00:05]} 8. h4 {[%emt 0:03:00]} d6 {[%emt 0:03:26]} 9. c4 {[%emt 0:00:00]} Ba6 {[%emt 0:02:39]} 10. exd6 {[%emt 0:00:00]} cxd6 {[%emt 0:00:42]} 11. Qxe7+ {[%emt 0:00:00]} Nxe7 {[%emt 0:00:06]} 12. b3 {[%emt 0:02:00]} h5 {[%emt 1:28:12]} 13. Bb2 {[%emt 0:00:30]} Ng6 $16 {[%emt 0:00:30]} (13... O-O-O $11 {feels stronger.}) 14. g3 {[%emt 0:00:30]} Ne5 {[%emt 0:00:30]} 15. Nd2 {[%emt 0:00:30]} Be7 {[%emt 0:00:30]} 16. O-O-O {[%emt 0:00:00]} O-O {[%emt 0:00:30]} 17. Ne4 {[%emt 0:01:00]} Rfd8 {[%emt 0:00:30]} 18. Bg2 {[%emt 0:00:30]} Ng4 {[%emt 0:00:30]} 19. Rd2 {[%emt 0:00:30]} Rac8 {[%emt 0:00:30]} 20. Bd4 {[%emt 0:00:30]} d5 {[%emt 0:00:30]} 21. Bc5 {[%emt 0:00:00]} dxe4 {[%emt 0:00:00]} 22. Bxe7 {[%emt 0:00:00]} Rxd2 {[%emt 0:00:00]} 23. Kxd2 {[%emt 0:01:30]} Nxf2 {[%emt 0:00:00]} 24. Rf1 {[%emt 0:00:00]} Ng4 {[%emt 0:02:00]} 25. Bc5 {[%emt 0:00:00]} e3+ {[%emt 0:00:00]} 26. Ke2 {[%emt 0:00:00]} Rd8 {[%emt 0:00:00]} 27. Rd1 {[%emt 0:02:00]} Re8 {[%emt 0:01:30]} 28. Rd3 {[%emt 0:00:30]} Bc8 {[%emt 0:00:00]} 29. Bxc6 {[%emt 0:00:30]} Re6 {[%emt 0:00:00]} 30. Rd8+ {[%emt 0:00:00]} Kh7 {[%emt 0:00:00]} 31. Rxc8 {[%emt 0:00:00]} Rf6 {[%emt 0:00:00]} 32. Bd4 {[%emt 0:00:00]} Rf2+ {[%emt 0:00:00]} 33. Ke1 {[%emt 0:02:00]} Rxa2 {[%emt 0:00:00]} 34. Be4+ {[%emt 0:00:00]} 1-0

[Event "Catalan Youth Championship 2024"]
[Site "Cambrils"]
[Date "2024.03.27"]
[Round "8.24"]
[White "Rocamora Martorell, Ferran"]
[Black "Vara Soler, Luis"]
[Result "1-0"]
[ECO "E67"]
[WhiteElo "2118"]
[BlackElo "1889"]
[Annotator "NA RC"]
[PlyCount "93"]
[EventDate "2024.03.13"]
[EventType "swiss"]
[EventCountry "ESP"]
[SourceTitle "playchess.com"]
[Source "ChessBase"]
[SourceQuality "1"]
[TimeControl "5400+30"]

1. Nf3 {[%emt 0:01:08]} Nf6 {[%emt 0:00:06]} 2. c4 {[%emt 0:00:12]} g6 {[%emt 0:00:06]} 3. d4 {[%emt 0:01:09]} Bg7 {[%emt 0:00:04]} 4. g3 {[%emt 0:00:11]} O-O {[%emt 0:00:05]} 5. Bg2 {[%emt 0:00:12]} d6 {[%emt 0:00:04]} 6. O-O {[%emt 0:00:21]} Nbd7 {[%emt 0:00:04]} 7. Nc3 {[%emt 0:01:21]} e5 {[%emt 0:00:41]} 8. dxe5 {[%emt 0:01:01]} dxe5 {[%emt 0:00:13]} 9. Qb3 {[%emt 0:00:10]} c6 {[%emt 0:02:35]} 10. Rd1 {[%emt 0:00:50]} Qc7 {[%emt 0:01:55]} 11. h3 {[%emt 0:05:20]} (11. Qa3 $142) 11... Nc5 {[%emt 0:07:35]} 12. Qa3 {[%emt 0:06:39]} Ne6 $11 {[%emt 0:11:01]} 13. Be3 {[%emt 0:03:36]} Bd7 {[%emt 0:14:11]} 14. Rac1 {[%emt 0:03:28]} Rfd8 {[%emt 0:12:00]} 15. b4 {[%emt 0:03:19]} Ne8 {[%emt 0:01:28]} 16. Qb3 {[%emt 0:11:03]} Nd4 {[%emt 0:07:50]} 17. Nxd4 {[%emt 0:08:11]} exd4 {[%emt 0:00:06]} 18. Bxd4 {[%emt 0:00:09]} Bxh3 {[%emt 0:01:05]} 19. Bxg7 {[%emt 0:01:21]} Bxg2 {[%emt 0:00:07]} 20. Bd4 {[%emt 0:00:49]} Bh3 {[%emt 0:00:33]} 21. Ne4 {[%emt 0:04:37]} Qe7 {[%emt 0:01:04]} 22. Qe3 {[%emt 0:05:20]} Qe6 {[%emt 0:05:05]} 23. Ba1 {[%emt 0:15:11]} Rxd1+ {[%emt 0:06:26]} 24. Rxd1 {[%emt 0:00:15]} f6 {[%emt 0:08:54]} 25. Qd4 {[%emt 0:07:36]} Bf5 {[%emt 0:08:33]} 26. Nxf6+ {[%emt 0:03:17]} Nxf6 {[%emt 0:00:10]} 27. Qxf6 {[%emt 0:00:03]} Qxf6 {[%emt 0:00:09]} 28. Bxf6 {[%emt 0:00:04]} Kf7 {[%emt 0:00:35]} 29. Be5 {[%emt 0:03:03]} Re8 {[%emt 0:00:30]} 30. f4 {[%emt 0:00:23]} Re7 {[%emt 0:01:04]} 31. Rd8 {[%emt 0:02:12]} Re8 {[%emt 0:00:07]} 32. Rd4 {[%emt 0:00:18]} Re7 {[%emt 0:00:07]} 33. c5 {[%emt 0:04:37]} Rd7 {[%emt 0:00:30]} 34. Bd6 {[%emt 0:00:11]} a6 {[%emt 0:02:17]} 35. Kf2 {[%emt 0:00:40]} h5 {[%emt 0:00:10]} 36. a3 {[%emt 0:01:05]} Rd8 {[%emt 0:00:22]} 37. e4 {[%emt 0:02:09]} Bg4 {[%emt 0:00:22]} 38. Ke3 {[%emt 0:07:59]} Rd7 {[%emt 0:00:42]} 39. Rd2 {[%emt 0:00:00]} Ke6 {[%emt 0:00:12]} 40. Rd4 {[%emt 0:00:00]} Rd8 {[%emt 0:00:07]} 41. Kd3 {[%emt 0:00:00]} Rd7 {[%emt 0:00:35]} 42. Kc2 {[%emt 0:00:00]} Rd8 {[%emt 0:00:20]} 43. Kb3 {[%emt 0:00:00]} b5 {[%emt 0:03:21]} 44. cxb6 {[%emt 0:00:00]} Rd7 {[%emt 0:01:01]} 45. Bc7 {[%emt 0:00:00]} Rxd4 {[%emt 0:01:07]} 46. b7 {[%emt 0:00:00]} Rd3+ {[%emt 0:00:24]} 47. Kc2 {[%emt 0:04:30]} 1-0

[Event "Catalan Youth Championship 2024"]
[Site "Cambrils"]
[Date "2024.03.28"]
[Round "9.1"]
[White "Saltos Macias, Gael"]
[Black "Caballero Mogilnikov, Liam"]
[Result "0-1"]
[ECO "B98"]
[WhiteElo "1630"]
[BlackElo "1659"]
[Annotator "NA RC"]
[PlyCount "54"]
[EventDate "2024.03.13"]
[EventType "swiss"]
[EventCountry "ESP"]
[SourceTitle "playchess.com"]
[Source "ChessBase"]
[SourceQuality "1"]
[TimeControl "5400+30"]

1. e4 {[%emt 0:00:03]} c5 {[%emt 0:00:28]} 2. Nf3 {[%emt 0:00:26]} d6 {[%emt 0:00:19]} 3. d4 {[%emt 0:00:41]} cxd4 {[%emt 0:00:35]} 4. Nxd4 {[%emt 0:00:15]} Nf6 {[%emt 0:00:42]} 5. Nc3 {[%emt 0:01:06]} a6 {[%emt 0:00:46]} 6. Bg5 {[%emt 0:00:55]} e6 {[%emt 0:00:56]} 7. f4 {[%emt 0:01:09]} Be7 {[%emt 0:02:28]} 8. Qf3 {[%emt 0:01:39]} Qc7 {[%emt 0:06:55]} 9. g4 {[%emt 0:04:04]} Nbd7 {[%emt 0:03:27]} 10. Be2 {[%emt 0:09:39]} Nc5 {[%emt 0:11:33]} 11. Bxf6 {[%emt 0:02:38]} Bxf6 {[%emt 0:00:37]} 12. Nb3 {[%emt 0:01:00]} Nxb3 {[%emt 0:03:14]} 13. axb3 {[%emt 0:00:42]} Bh4+ {[%emt 0:01:17]} 14. Kf1 {[%emt 0:00:26]} Bf6 {[%emt 0:04:15]} 15. Qd3 {[%emt 0:04:54]} d5 {[%emt 0:05:28]} 16. e5 {[%emt 0:00:48]} Be7 {[%emt 0:01:04]} 17. Nb5 {[%emt 0:02:54]} Qb6 {[%emt 0:00:48]} 18. c4 {[%emt 0:00:28]} Bd7 {[%emt 0:01:21]} 19. Nd4 {[%emt 0:00:32]} dxc4 {[%emt 0:03:36]} 20. Qxc4 {[%emt 0:00:26]} Rc8 {[%emt 0:00:57]} 21. Qd3 {[%emt 0:00:40]} O-O {[%emt 0:01:36]} 22. Rg1 {[%emt 0:06:20]} Bc5 {[%emt 0:01:59]} 23. Rd1 {[%emt 0:00:13]} Bb5 {[%emt 0:01:27]} 24. Qe4 {[%emt 0:04:19]} Rfd8 {[%emt 0:01:56]} 25. Bxb5 {[%emt 0:02:56]} axb5 {[%emt 0:01:14]} 26. Rg3 {[%emt 0:02:05]} Rxd4 {[%emt 0:00:58]} 27. Rxd4 {[%emt 0:00:30]} Bxd4 {[%emt 0:00:25]} 0-1